bitfinex-derivatives/quotes_SOLF0:USTF0_20250831
["timestamp","ask_amount","ask_price","bid_price","bid_amount"]
[1756650841154,7.30097973,203.2,203.18,4.53061774]
[1756650841358,3.05097973,203.25,203.19,4.53101842]
[1756650841551,131.59,203.24,203.2,11.77101842]
[1756650841859,131.59,203.24,203.21,4.51808527]
[1756650842158,131.59,203.24,203.21,7.24]
[1756650842159,127.34,203.24,203.21,7.24]
[1756650842860,3.05097973,203.24,203.12,7.24]
[1756650843061,127.28,203.23,203.14,7.24]
[1756650843359,127.28,203.23,203.16,7.24]
[1756650843754,127.28,203.23,203.18,7.24]
[1756650843964,3.05097973,203.24,203.19,4.52457726]
[1756650844157,130.29097973,203.24,203.2,4.52457726]
[1756650844351,3.05097973,203.24,203.22,7.24]
[1756650844551,130.25097973,203.24,203.23,4.52457726]
[1756650846065,3.05097973,203.25,203.23,11.76457726]
[1756650846253,130.11097973,203.28,203.25,7.24]
[1756650846456,130.11097973,203.28,203.26,11.76457726]
[1756650846457,127.06,203.28,203.26,11.76457726]
[1756650846661,127.06,203.28,203.17,3.05097973]
[1756650846662,127.16,203.28,203.27,11.76457726]
[1756650847659,333.73097973,203.32,203.27,4.52457726]
[1756650847953,127.12,203.31,203.29,7.52]
[1756650848154,127.12,203.31,203.3,4.52457726]
[1756650848560,330.68,203.32,203.3,4.52457726]
[1756650848763,127.08,203.31,203.22,7.52]
[1756650848963,127.08,203.31,203.24,7.52]
[1756650849164,127.08,203.31,203.26,7.52]
[1756650849363,127.08,203.31,203.27,4.53630152]
[1756650849664,127.08,203.31,203.29,7.52]
[1756650849861,127.08,203.31,203.3,12.05630152]
[1756650850256,330.68,203.32,203.3,12.05630152]
[1756650850459,457.68,203.32,203.31,12.05630152]
[1756650852764,457.68,203.32,203.31,4.53630152]
[1756650853069,457.68,203.32,203.31,12.05630152]
[1756650854472,457.68,203.32,203.31,12.07179859]
[1756650854870,127.0,203.32,203.31,12.07179859]
[1756650855873,126.6,203.34,203.31,12.07179859]
[1756650856069,126.6,203.34,203.32,4.55179859]
[1756650856270,126.6,203.34,203.33,4.55179859]
[1756650856772,126.64,203.35,203.33,4.55179859]
[1756650856966,126.64,203.35,203.34,4.55179859]
[1756650857364,130.87,203.35,203.34,4.55179859]
[1756650857867,126.64,203.35,203.21,7.52]
[1756650858063,3.05097973,203.33,203.21,7.52]
[1756650858261,4.23,203.34,203.21,7.52]
[1756650860672,129.69097973,203.35,203.21,7.52]
[1756650860673,4.23,203.31,203.21,7.52]
[1756650860974,4.23,203.28,203.21,7.52]
[1756650861170,41.0,203.27,203.21,7.52]
[1756650864371,41.0,203.27,203.16,7.52]
[1756650864372,3.05097973,203.26,203.16,7.52]
[1756650864675,4.23,203.25,203.16,7.52]
[1756650864970,4.25,203.24,203.16,7.52]
[1756650865772,41.0,203.27,203.16,7.52]
[1756650865773,4.25,203.22,203.16,7.52]
[1756650866071,4.25,203.22,203.1,7.52]
[1756650866272,4.25,203.22,203.11,7.52]
[1756650867073,3.05097973,203.2,203.11,7.52]
[1756650867273,4.25,203.19,203.11,7.52]
[1756650869374,3.05097973,203.17,203.11,7.52]
[1756650870378,4.25,203.16,203.06,7.52]
[1756650872776,7.30097973,203.16,203.06,7.52]
[1756650875782,3.05097973,203.16,203.06,7.52]
[1756650876082,4.25,203.15,203.06,7.52]
[1756650876282,3.05097973,203.16,203.06,7.52]
[1756650876483,4.25,203.12,203.06,7.52]
[1756650877176,4.25,203.16,203.06,7.52]
[1756650878680,3.05097973,203.15,203.06,7.52]
[1756650878979,4.26,203.14,203.06,7.52]
[1756650879581,27.74,203.14,203.06,7.52]
[1756650880278,4.26,203.14,203.06,7.52]
[1756650881786,3.05097973,203.15,203.06,7.52]
[1756650882980,4.26,203.18,203.06,7.52]
[1756650883181,4.26,203.18,203.07,7.56]
[1756650883383,3.05097973,203.28,203.07,7.56]
[1756650883582,7.31097973,203.21,203.09,3.05097973]
[1756650883776,7.31097973,203.21,203.1,7.56]
[1756650885080,3.05097973,203.24,203.13,7.56]
[1756650885281,49.98,203.23,203.13,7.56]
[1756650886182,54.24,203.23,203.13,7.56]
[1756650887483,57.29097973,203.23,203.13,7.56]
[1756650888084,4.26,203.22,203.13,7.56]
[1756650888288,53.03097973,203.23,203.13,7.56]
[1756650888289,4.26,203.19,203.13,7.56]
[1756650888489,4.26,203.19,203.1,7.56]
[1756650890388,4.26,203.16,203.05,3.05097973]
[1756650890692,4.26,203.16,203.06,7.56]
[1756650892388,16.63097973,203.2,203.06,7.56]
[1756650892585,4.26,203.19,203.06,7.56]
[1756650896498,3.05097973,203.17,203.06,7.56]
[1756650897203,7.31097973,203.17,203.06,7.56]
[1756650901704,7.31097973,203.17,203.07,4.41668187]
[1756650901908,4.26,203.17,203.09,7.56]
[1756650902109,4.26,203.17,203.1,4.41668187]
[1756650902405,4.26,203.17,203.12,7.56]
[1756650902605,7.31097973,203.21,203.13,4.41668187]
[1756650902805,7.31097973,203.21,203.14,4.41668187]
[1756650903109,7.31097973,203.21,203.15,4.41668187]
[1756650903311,3.05097973,203.21,203.16,4.41668187]
[1756650903506,4.26,203.2,203.17,4.41668187]
[1756650903805,4.26,203.2,203.18,4.41668187]
[1756650904011,4.26,203.2,203.19,4.41668187]
[1756650904411,4.26,203.2,203.06,4.1084181]
[1756650904412,4.26,203.19,203.06,4.1084181]
[1756650904608,3.05097973,203.12,203.07,7.56]
[1756650904812,4.26,203.11,203.07,7.56]
[1756650905105,3.05097973,203.12,203.07,7.56]
[1756650905310,4.26,203.11,203.07,7.56]
[1756650905606,3.05097973,203.12,203.01,4.1084181]
[1756650905811,4.26,203.11,203.02,7.56]
[1756650907609,3.05097973,203.09,203.02,7.56]
[1756650908105,7.31097973,203.11,203.02,7.56]
[1756650909512,3.05097973,203.08,203.02,7.56]
[1756650910016,7.33097973,203.08,203.02,7.56]
[1756650911018,4.28,203.07,202.98,7.94]
[1756650916215,7.33097973,203.1,202.98,7.94]
[1756650916518,39.23097973,203.1,202.98,7.94]
[1756650917617,7.33097973,203.1,202.98,7.94]
[1756650918523,4.28,203.1,203.0,7.94]
[1756650926525,4.28,203.1,203.02,3.05097973]
[1756650926826,4.28,203.1,203.03,7.94]
[1756650931128,3.05097973,203.12,202.99,15.08617407]
[1756650931322,4.26,203.11,203.0,7.94]
[1756650932328,3.05097973,203.12,203.0,7.94]
[1756650932828,4.26,203.11,203.0,7.94]
[1756650933426,3.05097973,203.12,203.0,7.94]
[1756650934132,4.26,203.11,203.0,7.94]
[1756650934332,3.05097973,203.12,203.0,7.94]
[1756650934525,4.26,203.11,203.0,7.94]
[1756650934732,3.05097973,203.12,203.0,7.94]
[1756650934927,4.26,203.11,203.0,7.94]
[1756650935128,3.05097973,203.12,203.0,7.94]
[1756650935827,4.26,203.11,203.0,7.94]
[1756650936031,3.05097973,203.12,203.0,7.94]
[1756650936333,4.26,203.11,203.0,7.94]
[1756650936533,4.26,203.11,203.0,12.03519434]
[1756650936827,4.26,203.11,203.01,4.09519434]
[1756650937032,4.26,203.11,203.03,7.94]
[1756650941231,3.05097973,203.11,203.03,7.94]
[1756650941536,4.26,203.1,203.03,7.94]
[1756650945636,4.26,203.12,203.03,7.94]
[1756650945834,4.26,203.09,203.0,10.28097973]
[1756650946236,4.26,203.09,203.01,7.23]
[1756650949438,3.05097973,203.11,203.02,7.23]
[1756650949639,4.26,203.12,203.02,7.23]
[1756650950638,4.26,203.16,203.06,3.05097973]
[1756650950834,4.26,203.2,203.11,7.23]
[1756650951537,4.26,203.2,203.12,4.57130312]
[1756650951737,4.26,203.2,203.13,4.57130312]
[1756650951937,4.26,203.2,203.14,4.57130312]
[1756650952136,4.26,203.22,203.15,4.57130312]
[1756650952337,4.26,203.22,203.16,4.57130312]
[1756650952539,3.05097973,203.23,203.17,4.57130312]
[1756650952839,3.05097973,203.23,203.18,4.57130312]
[1756650953038,3.05097973,203.23,203.19,4.57130312]
[1756650953240,4.26,203.22,203.2,4.57130312]
[1756650953538,4.26,203.22,203.21,4.57130312]
[1756650953741,3.05097973,203.23,203.09,7.23]
[1756650953943,3.05097973,203.2,203.09,7.23]
[1756650954140,3.05097973,203.2,203.1,7.23]
[1756650956838,3.05097973,203.17,203.1,7.23]
[1756650957243,13.33097973,203.17,203.1,7.23]
[1756650958150,10.28,203.17,203.1,7.23]
[1756650959143,3.05097973,203.15,203.06,7.23]
[1756650959839,10.28,203.17,203.06,7.23]
[1756650960044,3.05097973,203.13,203.06,7.23]
[1756650960550,3.05097973,203.1,203.02,11.32519434]
[1756650960747,5.48921914,203.18,203.02,7.23]
[1756650960947,3.05097973,203.14,203.03,7.23]
[1756650963152,3.05097973,203.08,203.0,7.23]
[1756650964248,5.48921914,203.16,203.0,7.23]
[1756650964448,3.05097973,203.11,203.0,7.23]
[1756650964651,3.05097973,203.11,203.01,7.23]
[1756650965151,3.05097973,203.11,203.02,7.23]
[1756650965850,3.05097973,203.14,203.04,7.23]
[1756650966055,3.05097973,203.14,203.05,4.45610328]
[1756650966248,3.05097973,203.14,203.06,11.68610328]
[1756650966448,3.05097973,203.14,203.07,4.45610328]
[1756650966644,35.74,203.15,203.09,7.23]
[1756650966645,84.65097973,203.15,203.09,7.23]
[1756650966854,3.05097973,203.16,203.1,4.45610328]
[1756650967055,3.05097973,203.16,203.12,7.23]
[1756650967252,3.05097973,203.16,203.13,4.45610328]
[1756650967452,3.05097973,203.16,203.14,4.45610328]
[1756650967646,3.05097973,203.16,203.15,4.45610328]
[1756650969058,330.9,203.22,203.15,11.91610328]
[1756650969258,333.95097973,203.22,203.16,4.45610328]
[1756650969462,333.95097973,203.22,203.17,4.45610328]
[1756650969659,333.95097973,203.22,203.18,4.45610328]
[1756650970260,333.95097973,203.22,203.19,4.50621457]
[1756650970461,333.95097973,203.22,203.2,4.50621457]
[1756650970658,333.95097973,203.22,203.21,4.50621457]
[1756650970857,333.95097973,203.22,203.15,7.46]
[1756650971058,333.95097973,203.22,203.16,4.50514118]
[1756650971258,333.95097973,203.22,203.17,4.50514118]
[1756650971559,333.95097973,203.22,203.18,4.50514118]
[1756650971860,333.95097973,203.22,203.19,4.50514118]
[1756650972062,333.95097973,203.22,203.2,4.50514118]
[1756650972260,333.95097973,203.22,203.21,4.50514118]
[1756650973861,333.95097973,203.22,203.21,4.50051994]
[1756650977962,333.95097973,203.22,203.1,7.46]
[1756650978164,3.05097973,203.19,203.1,7.46]
[1756650978362,123.72,203.18,203.1,7.46]
[1756650983172,3.05097973,203.16,203.1,7.46]
[1756650983668,3.05097973,203.13,203.05,4.09519434]
[1756650983868,3.05097973,203.1,203.02,7.46]
[1756650984167,62.66,203.09,203.02,7.46]
[1756650985565,87.24,203.08,203.02,7.46]
[1756650989968,87.24,203.08,203.03,11.90157233]
[1756650990169,87.24,203.08,203.04,4.44157233]
[1756650990365,87.24,203.08,203.05,4.44157233]
[1756650990570,87.24,203.08,203.06,4.44157233]
[1756650990769,87.24,203.08,203.07,4.44157233]
[1756650991570,87.24,203.08,203.07,4.44178514]
[1756650992372,87.24,203.08,203.07,4.43038537]
[1756650992666,3.05097973,203.11,203.07,4.43038537]
[1756650992873,121.13097973,203.14,203.08,11.89038537]
[1756650993067,38.03097973,203.14,203.09,4.43038537]
[1756650993274,38.03097973,203.14,203.1,4.43038537]
[1756650993472,38.03097973,203.14,203.11,4.43038537]
[1756650993672,38.03097973,203.14,203.12,4.43038537]
[1756650993872,38.03097973,203.14,203.08,7.46]
[1756650993873,38.03097973,203.14,203.13,4.43038537]
[1756650994776,3.05097973,203.14,203.13,4.43038537]
[1756650999372,123.72,203.16,203.13,4.43038537]
[1756650999576,126.77097973,203.16,203.14,4.43038537]
[1756650999776,126.77097973,203.16,203.15,4.43038537]
[1756650999978,126.77097973,203.16,203.04,7.64]
[1756651000176,3.05097973,203.11,203.04,7.64]
[1756651000681,3.05097973,203.13,203.04,7.64]
[1756651003878,123.52,203.15,203.04,7.64]
[1756651004682,123.52,203.15,203.04,4.09519434]
[1756651004877,123.52,203.15,203.07,7.64]
[1756651006781,330.9,203.22,203.07,7.64]
[1756651006978,3.05097973,203.2,203.07,11.73519434]
[1756651007178,3.05097973,203.2,203.08,7.64]
[1756651010984,330.9,203.22,203.1,7.64]
[1756651011287,330.9,203.22,203.13,7.64]
[1756651011984,330.9,203.22,203.14,4.6010195]
[1756651012184,330.9,203.22,203.15,12.2410195]
[1756651012384,330.9,203.22,203.16,4.6010195]
[1756651012584,330.9,203.22,203.17,12.2410195]
[1756651012785,330.9,203.22,203.18,4.6010195]
[1756651012985,330.9,203.22,203.19,4.6006546]
[1756651013284,330.9,203.22,203.2,4.6006546]
[1756651013485,330.9,203.22,203.21,4.6006546]
[1756651022500,330.9,203.22,203.21,4.54273079]
[1756651023003,3.05097973,203.29,203.21,4.54273079]
[1756651023303,122.94,203.28,203.22,4.54273079]
[1756651023494,122.94,203.28,203.23,4.54273079]
[1756651023697,122.94,203.28,203.24,4.54273079]
[1756651023904,122.94,203.28,203.25,4.54273079]
[1756651024203,122.94,203.28,203.21,7.64]
[1756651024204,122.94,203.28,203.26,4.54273079]
[1756651024403,122.94,203.28,203.27,4.54273079]
[1756651025398,122.94,203.28,203.18,7.64]
[1756651025703,122.94,203.28,203.19,4.53452306]
[1756651025903,122.94,203.28,203.2,4.53452306]
[1756651026201,122.94,203.28,203.21,4.53452306]
[1756651026393,122.94,203.28,203.22,4.53452306]
[1756651026596,122.94,203.28,203.23,4.53452306]
[1756651026802,122.94,203.28,203.24,4.53452306]
[1756651027000,122.94,203.28,203.25,4.53452306]
[1756651027201,122.94,203.28,203.26,4.53452306]
[1756651027401,122.94,203.28,203.18,7.64]
[1756651027604,122.94,203.28,203.2,7.64]
[1756651027899,3.05097973,203.29,203.2,7.64]
[1756651027900,122.94,203.27,203.21,4.5319792]
[1756651028098,122.94,203.27,203.23,7.78]
[1756651028309,3.05097973,203.29,203.24,4.5319792]
[1756651028505,122.94,203.26,203.25,4.5319792]
[1756651033303,122.94,203.26,203.25,4.53210921]
[1756651033607,122.92,203.28,203.25,4.53210921]
[1756651033808,122.92,203.28,203.26,4.53210921]
[1756651034109,122.92,203.28,203.27,4.53210921]
[1756651034806,125.97097973,203.28,203.27,4.53210921]
[1756651035807,122.92,203.28,203.27,4.53210921]
[1756651040411,122.9,203.28,203.27,4.53210921]
[1756651041416,122.9,203.28,203.27,12.31210921]
[1756651041918,122.9,203.28,203.27,4.53210921]
[1756651044015,122.9,203.28,203.27,4.52501099]
[1756651045819,123.4,203.28,203.15,7.78]
[1756651046116,3.05097973,203.25,203.15,7.78]
[1756651049216,122.9,203.28,203.15,7.78]
[1756651049412,3.05097973,203.27,203.16,7.78]
[1756651052224,122.88,203.26,203.16,7.78]
[1756651054124,122.88,203.31,203.21,7.78]
[1756651056028,122.88,203.31,203.21,11.85187968]
[1756651056229,122.88,203.31,203.22,7.78]
[1756651057825,122.88,203.31,203.24,7.93]
[1756651058025,122.88,203.31,203.25,4.70700545]
[1756651058223,122.86,203.33,203.26,12.63700545]
[1756651058428,122.86,203.33,203.27,4.70700545]
[1756651058630,122.86,203.33,203.28,4.70700545]
[1756651058923,122.86,203.33,203.29,4.70700545]
[1756651059124,122.86,203.33,203.3,4.70700545]
[1756651059331,122.86,203.33,203.31,4.70700545]
[1756651059529,122.86,203.33,203.32,4.70700545]
[1756651062332,125.91097973,203.33,203.32,4.70700545]
[1756651064336,122.86,203.33,203.32,4.70700545]
[1756651065439,122.86,203.33,203.32,4.55207983]
[1756651066432,122.86,203.33,203.32,4.55146523]
[1756651074745,122.86,203.33,203.24,7.93]
[1756651075040,3.05097973,203.3,203.24,7.93]
[1756651075240,122.8,203.29,203.24,7.93]
[1756651076633,122.8,203.29,203.2,7.93]
[1756651079345,3.05097973,203.3,203.2,7.93]
[1756651080045,29.16,203.29,203.2,7.93]
[1756651080346,3.05097973,203.3,203.2,7.93]
[1756651080546,29.14,203.29,203.2,7.93]
[1756651080846,3.05097973,203.3,203.21,7.93]
[1756651081146,29.14,203.29,203.21,7.93]
[1756651081346,3.05097973,203.3,203.21,7.93]
[1756651081347,56.82,203.28,203.21,7.93]
[1756651081848,3.05097973,203.3,203.21,7.93]
[1756651082146,29.12,203.29,203.21,7.93]
[1756651082744,3.05097973,203.33,203.21,7.93]
[1756651082949,66.94,203.32,203.23,7.93]
[1756651084447,122.78,203.32,203.23,7.93]
[1756651084748,122.78,203.33,203.25,7.93]
[1756651085749,122.78,203.33,203.25,12.01233579]
[1756651086449,330.82,203.36,203.26,7.93]
[1756651086648,122.76,203.35,203.27,4.54850846]
[1756651086848,453.58,203.36,203.29,7.93]
[1756651087143,330.82,203.36,203.31,7.93]
[1756651087350,453.58,203.36,203.32,12.47850846]
[1756651087540,330.82,203.36,203.33,4.54850846]
[1756651087746,330.82,203.36,203.34,4.54850846]
[1756651087947,330.82,203.36,203.35,4.54850846]
[1756651091456,122.74,203.37,203.35,4.54850846]
[1756651091656,3.05097973,203.4,203.36,4.54850846]
[1756651091857,122.74,203.39,203.37,4.54850846]
[1756651092061,122.74,203.39,203.38,4.54850846]
[1756651096666,122.74,203.39,203.32,7.93]
[1756651096861,122.74,203.39,203.33,4.5427718]
[1756651097062,122.74,203.39,203.34,4.5427718]
[1756651097264,122.74,203.39,203.35,4.5427718]
[1756651097457,122.74,203.39,203.34,7.93]
[1756651097662,122.74,203.39,203.35,4.54340272]
[1756651097961,122.74,203.39,203.36,4.54340272]
[1756651098161,122.74,203.39,203.37,4.54340272]
[1756651098467,122.74,203.39,203.38,4.54340272]
[1756651100569,122.74,203.39,203.29,7.93]
[1756651100570,122.68,203.39,203.29,7.93]
[1756651100765,3.05097973,203.38,203.29,7.93]
[1756651100961,5.48921914,203.46,203.29,7.93]
[1756651101165,3.05097973,203.39,203.29,7.93]
[1756651101366,28.74,203.38,203.29,7.93]
[1756651101671,5.48921914,203.46,203.29,7.93]
[1756651101866,338.83968793,203.48,203.31,7.93]
[1756651101867,3.05097973,203.41,203.31,7.93]
[1756651103868,30.62,203.45,203.31,7.93]
[1756651103869,3.05097973,203.38,203.31,7.93]
[1756651104066,30.96,203.37,203.31,7.93]
[1756651107477,61.11097973,203.38,203.31,7.93]
[1756651107871,61.11097973,203.38,203.26,4.08233579]
[1756651108073,3.05097973,203.35,203.27,7.93]
[1756651109274,3.05097973,203.35,203.23,7.93]
[1756651109476,3.05097973,203.32,203.23,7.93]
[1756651111983,9.52,203.31,203.23,7.93]
[1756651112484,9.52,203.31,203.24,4.52420678]
[1756651112686,9.52,203.31,203.25,4.52420678]
[1756651112886,9.52,203.31,203.26,4.52420678]
[1756651113184,9.52,203.31,203.27,4.52420678]
[1756651113485,9.52,203.31,203.28,4.52420678]
[1756651113686,9.52,203.31,203.29,4.52420678]
[1756651113886,3.05097973,203.3,203.18,7.93]
[1756651114084,3.05097973,203.26,203.18,7.93]
[1756651116477,3.05097973,203.23,203.18,7.93]
[1756651116682,3.05097973,203.23,203.12,7.93]
[1756651116883,7.11097973,203.23,203.12,7.93]
[1756651117985,3.05097973,203.22,203.12,7.93]
[1756651119388,3.05097973,203.25,203.13,7.49]
[1756651119583,3.58,203.23,203.13,7.49]
[1756651119989,3.05097973,203.22,203.13,7.49]
[1756651121588,3.58,203.23,203.13,7.49]
[1756651121788,3.05097973,203.21,203.13,7.49]
[1756651124685,3.58,203.23,203.13,7.49]
[1756651124891,3.05097973,203.22,203.13,7.49]
[1756651125293,3.05097973,203.19,203.13,7.49]
[1756651125897,3.05097973,203.19,203.14,4.45097953]
[1756651126095,3.05097973,203.19,203.15,4.45097953]
[1756651126294,3.05097973,203.19,203.16,4.45097953]
[1756651126593,3.05097973,203.19,203.1,7.49]
[1756651126895,3.05097973,203.19,203.04,3.05097973]
[1756651126896,3.05097973,203.16,203.11,11.94076533]
[1756651127092,3.05097973,203.16,203.12,4.45076533]
[1756651127396,3.05097973,203.16,203.13,4.45076533]
[1756651127596,3.05097973,203.16,203.11,7.49]
[1756651127897,3.05097973,203.16,203.12,4.44857567]
[1756651128197,3.05097973,203.16,203.13,4.44857567]
[1756651128393,3.05097973,203.16,203.11,7.49]
[1756651128593,3.05097973,203.16,203.12,4.44658314]
[1756651128796,3.05097973,203.16,203.11,7.49]
[1756651129097,3.05097973,203.13,203.07,7.49]
[1756651129296,3.05097973,203.13,203.09,7.49]
[1756651129590,3.05097973,203.13,203.1,4.44761932]
[1756651129795,3.05097973,203.13,203.06,7.49]
[1756651129996,3.05097973,203.13,203.07,4.44530608]
[1756651130296,3.05097973,203.13,203.09,7.49]
[1756651130893,3.05097973,203.13,203.01,92.47910584]
[1756651131096,3.05097973,203.13,203.03,7.49]
[1756651131400,3.05097973,203.13,203.05,7.49]
[1756651131699,3.05097973,203.13,203.07,7.49]
[1756651131895,3.05097973,203.13,203.08,4.44261713]
[1756651132096,3.05097973,203.13,203.09,11.93261713]
[1756651132296,3.05097973,203.13,203.1,4.44261713]
[1756651132496,3.05097973,203.13,203.09,7.49]
[1756651132701,3.05097973,203.1,203.02,7.49]
[1756651132998,3.05097973,203.1,203.03,4.43935005]
[1756651133201,3.05097973,203.1,203.04,4.43935005]
[1756651133394,3.05097973,203.1,203.02,7.49]
[1756651133395,3.05097973,203.1,203.05,11.92935005]
[1756651133601,3.05097973,203.17,203.06,11.92935005]
[1756651133799,3.05097973,203.14,203.08,7.49]
[1756651134299,49.21097973,203.14,203.08,7.49]
[1756651135092,46.16,203.14,203.08,7.49]
[1756651135298,3.05097973,203.13,203.02,7.49]
[1756651135602,3.05097973,203.13,203.04,7.49]
[1756651135900,3.05097973,203.13,203.06,7.49]
[1756651136100,3.05097973,203.13,203.07,4.43432763]
[1756651136303,3.05097973,203.13,203.09,7.49]
[1756651139901,3.05097973,203.13,203.01,92.47910584]
[1756651140103,3.05097973,203.13,203.02,4.43196051]
[1756651140299,3.05097973,203.15,203.04,7.49]
[1756651140506,3.05097973,203.17,203.06,7.49]
[1756651140707,3.05097973,203.17,203.07,4.43196051]
[1756651140905,3.05097973,203.17,203.09,7.49]
[1756651141106,3.05097973,203.17,203.1,4.43196051]
[1756651141304,3.05097973,203.17,203.11,4.43196051]
[1756651141606,3.05097973,203.17,203.09,7.49]
[1756651141802,3.05097973,203.17,203.1,4.43180635]
[1756651142105,3.05097973,203.17,203.11,4.43180635]
[1756651142300,3.05097973,203.14,203.09,7.49]
[1756651142498,3.05097973,203.14,203.11,7.49]
[1756651143306,3.05097973,203.14,203.12,4.43596555]
[1756651143510,3.05097973,203.14,203.03,7.49]
[1756651143707,3.05097973,203.14,203.04,4.43596391]
[1756651144010,3.05097973,203.14,203.06,7.49]
[1756651144205,3.05097973,203.14,203.08,7.49]
[1756651144413,3.05097973,203.14,203.09,4.43596391]
[1756651144712,3.05097973,203.11,203.1,4.43596391]
[1756651145412,3.05097973,203.28,203.11,7.49]
[1756651145413,3.05097973,203.23,203.11,7.49]
[1756651145615,3.05097973,203.23,203.12,4.43596391]
[1756651145907,3.05097973,203.23,203.14,7.49]
[1756651146112,3.05097973,203.23,203.16,7.49]
[1756651146313,3.05097973,203.23,203.17,4.43596391]
[1756651146609,55.0,203.28,203.18,4.43596391]
[1756651146810,55.0,203.28,203.19,11.92596391]
[1756651146811,3.05097973,203.26,203.19,11.92596391]
[1756651147010,3.05097973,203.26,203.2,4.43596391]
[1756651147206,3.05097973,203.26,203.22,7.49]
[1756651147410,3.05097973,203.26,203.23,4.43596391]
[1756651147612,3.05097973,203.26,203.22,7.49]
[1756651147812,3.05097973,203.26,203.23,4.43686358]
[1756651148011,3.05097973,203.26,203.11,3.05097973]
[1756651148213,3.05097973,203.26,203.13,7.39]
[1756651148521,3.05097973,203.26,203.15,7.39]
[1756651148721,3.05097973,203.26,203.17,7.39]
[1756651149121,3.05097973,203.26,203.18,4.43990244]
[1756651149322,3.05097973,203.26,203.19,4.43990244]
[1756651149519,3.05097973,203.26,203.2,4.43990244]
[1756651149720,3.05097973,203.26,203.21,4.43990244]
[1756651149922,3.05097973,203.26,203.22,4.43990244]
[1756651150121,3.05097973,203.26,203.23,4.43990244]
[1756651150422,3.05097973,203.26,203.24,4.44500007]
[1756651150717,3.05097973,203.26,203.19,7.39]
[1756651150922,3.05097973,203.26,203.2,4.44500109]
[1756651151117,3.05097973,203.26,203.21,11.83500109]
[1756651151318,3.05097973,203.23,203.16,7.39]
[1756651151521,3.05097973,203.2,203.09,7.39]
[1756651152924,3.05097973,203.23,203.09,7.39]
[1756651153120,10.17097973,203.23,203.09,7.39]
[1756651156328,10.17097973,203.23,203.1,7.39]
[1756651156827,7.12,203.23,203.11,3.05097973]
[1756651157025,7.12,203.23,203.12,7.39]
[1756651159226,3.05097973,203.21,203.12,7.39]
[1756651159422,7.12,203.23,203.12,7.39]
[1756651159619,3.05097973,203.24,203.12,7.39]
[1756651160330,3.05097973,203.24,203.13,7.39]
[1756651163330,3.05097973,203.24,203.14,4.40761875]
[1756651163536,3.05097973,203.21,203.15,11.79761875]
[1756651163834,3.05097973,203.21,203.16,4.40761875]
[1756651164034,3.05097973,203.21,203.15,7.39]
[1756651164035,3.05097973,203.21,203.17,4.40761875]
[1756651164232,3.05097973,203.21,203.18,4.40761875]
[1756651164432,3.05097973,203.21,203.19,4.40761875]
[1756651164730,3.05097973,203.21,203.2,4.40761875]
[1756651168639,3.55097973,203.21,203.09,7.39]
[1756651168938,3.05097973,203.21,203.09,7.39]
[1756651171441,3.05097973,203.18,203.09,7.39]
[1756651175642,3.05097973,203.19,203.09,7.39]
[1756651178541,3.05097973,203.16,203.09,7.39]
[1756651178842,3.05097973,203.13,203.05,7.74]
[1756651189160,3.05097973,203.1,203.05,7.74]
[1756651189555,3.05097973,203.07,202.98,7.74]
[1756651191659,3.05097973,203.12,202.99,7.74]
[1756651191855,8.39097973,203.12,203.01,3.05097973]
[1756651192158,8.39097973,203.12,203.02,7.74]